bitfinex-derivatives/quotes_SOLF0:USTF0_20250215
["timestamp","ask_amount","ask_price","bid_price","bid_amount"]
[1739614401821,0.03426636,194.44,194.43,14.03407379]
[1739614402017,0.03426636,194.44,194.43,5.1424]
[1739614410324,0.03426636,194.44,194.41,5.17711007]
[1739614410622,0.03426636,194.44,194.41,0.03421007]
[1739614411928,0.03426636,194.44,194.42,5.1426]
[1739614413823,0.03426636,194.44,194.42,5.1425]
[1739614414021,0.03426636,194.44,194.41,0.03421007]
[1739614415027,0.03426636,194.44,194.42,5.1427]
[1739614415727,0.03426636,194.44,194.43,5.1424]
[1739614418634,0.03426636,194.44,194.42,5.1425]
[1739614419435,0.03426636,194.44,194.43,5.1424]
[1739614423928,0.03426636,194.44,194.43,14.03563787]
[1739614427136,5.1404,194.51,194.47,5.1413]
[1739614427338,5.1404,194.51,194.47,14.03453787]
[1739614427838,14.03323787,194.53,194.48,5.1409]
[1739614428034,8.89323787,194.53,194.47,8.89323787]
[1739614428235,0.03465824,194.52,194.49,8.92704398]
[1739614432042,0.03465824,194.52,194.49,0.03380611]
[1739614433546,8.89323787,194.51,194.49,0.03380611]
[1739614434147,5.1406,194.5,194.49,0.03380611]
[1739614437845,5.1422,194.45,194.42,2.0785]
[1739614438057,8.89323787,194.45,194.39,8.89323787]
[1739614438557,5.1424,194.44,194.39,8.89323787]
[1739614439057,0.03697538,194.43,194.4,0.03478893]
[1739614440656,0.03697538,194.43,194.4,5.17798893]
[1739614441159,0.03697538,194.43,194.4,0.03478893]
[1739614443862,0.03697538,194.43,194.4,5.17788893]
[1739614446962,0.03697538,194.43,194.42,5.1427]
[1739614448064,0.03697538,194.43,194.41,11.02383787]
[1739614448264,0.03697538,194.43,194.4,0.03478893]
[1739614448668,5.17957538,194.43,194.4,0.03478893]
[1739614448968,8.89323787,194.41,194.4,0.03478893]
[1739614450162,14.03623787,194.41,194.4,0.03478893]
[1739614459378,8.89323787,194.41,194.4,0.03478893]
[1739614459980,0.03697538,194.43,194.4,0.03478893]
[1739614460382,0.03697538,194.43,194.4,5.17798893]
[1739614460679,0.03697538,194.43,194.4,0.03478893]
[1739614461079,0.03697538,194.43,194.4,5.17778893]
[1739614462181,0.03697538,194.43,194.41,5.1427]
[1739614467284,0.03697538,194.43,194.42,5.1427]
[1739614467787,0.03697538,194.43,194.41,5.1429]
[1739614468982,0.03697538,194.43,194.42,5.1427]
[1739614469181,0.03697538,194.43,194.42,14.03593787]
[1739614469787,5.1413,194.48,194.42,8.89323787]
[1739614469987,8.89323787,194.49,194.44,8.89323787]
[1739614470188,5.1414,194.47,194.44,8.89323787]
[1739614470988,5.18100493,194.47,194.44,8.92682576]
[1739614474192,5.18100493,194.47,194.44,0.03358789]
[1739614476692,5.1417,194.46,194.44,0.03358789]
[1739614478086,8.9328428,194.47,194.44,0.03358789]
[1739614478485,8.9328428,194.47,194.44,5.17568789]
[1739614478692,8.9328428,194.47,194.44,8.92682576]
[1739614478693,0.03960493,194.47,194.44,8.92682576]
[1739614479191,0.03960493,194.47,194.45,5.1419]
[1739614479392,0.03960493,194.47,194.44,8.92682576]
[1739614479892,0.03960493,194.47,194.46,5.1416]
[1739614480794,5.1406,194.5,194.46,5.1416]
[1739614480990,5.1406,194.5,194.46,14.03483787]
[1739614481291,5.141,194.49,194.46,8.89323787]
[1739614482089,5.17398207,194.49,194.46,8.89323787]
[1739614482590,0.03298207,194.49,194.46,8.89323787]
[1739614483185,0.03298207,194.49,194.47,5.1412]
[1739614484488,0.03298207,194.49,194.48,14.03433787]
[1739614501596,0.03298207,194.49,194.46,8.89323787]
[1739614502902,0.03298207,194.49,194.47,5.1414]
[1739614505397,0.03298207,194.49,194.48,14.03433787]
[1739614507110,0.03298207,194.49,194.48,8.89323787]
[1739614507496,0.03298207,194.49,194.48,5.1411]
[1739614511711,0.03298207,194.49,194.44,0.03358789]
[1739614512211,8.89323787,194.48,194.44,0.03358789]
[1739614512709,8.89323787,194.46,194.44,0.03358789]
[1739614513617,4.22,194.45,194.44,0.03358789]
[1739614514214,9.3619,194.45,194.44,0.03358789]
[1739614514703,13.4719,194.45,194.44,0.03358789]
[1739614516703,8.33,194.45,194.37,5.144]
[1739614516908,8.89323787,194.42,194.36,8.89323787]
[1739614518014,0.03258343,194.41,194.37,0.03622298]
[1739614518205,4.14258343,194.41,194.37,0.03622298]
[1739614518408,8.23,194.4,194.37,0.03622298]
[1739614519115,8.23,194.4,194.38,8.89323787]
[1739614520214,8.23,194.4,194.38,14.03693787]
[1739614521016,8.23,194.4,194.38,8.89323787]
[1739614523209,8.23,194.4,194.39,5.1435]
[1739614527831,8.23,194.4,194.37,5.18022298]
[1739614528024,17.12323787,194.4,194.37,5.18022298]
[1739614528731,17.12323787,194.4,194.37,0.03622298]
[1739614529231,8.23,194.4,194.38,5.1437]
[1739614530432,8.23,194.4,194.19,12.15317795]
[1739614530433,30.81,194.38,194.19,12.15317795]
[1739614530624,30.81,194.38,194.11,84.75724136]
[1739614530625,8.89323787,194.21,194.11,93.65047923]
[1739614530923,8.89323787,194.18,194.11,93.65047923]
[1739614531428,8.89323787,194.28,194.11,84.75724136]
[1739614531429,8.89323787,194.16,194.11,84.75724136]
[1739614531628,8.89323787,194.14,194.13,0.03278062]
[1739614533126,11.43,194.15,194.13,0.03278062]
[1739614533428,8.89323787,194.14,194.13,0.03278062]
[1739614533630,8.92483266,194.14,194.13,0.03278062]
[1739614534227,11.43,194.15,194.13,0.03278062]
[1739614536733,4.23,194.14,194.13,0.03278062]
[1739614538035,8.35,194.14,194.13,0.03278062]
[1739614540830,8.35,194.14,194.05,5.1522]
[1739614541031,13.91050894,194.13,194.04,13.91050894]
[1739614541232,13.91050894,194.13,194.01,16.00820894]
[1739614541432,4.12,194.12,194.01,16.00820894]
[1739614541735,13.86,194.12,194.04,19.06300894]
[1739614541930,13.86,194.12,194.04,13.91050894]
[1739614542131,0.03606497,194.1,194.07,13.91050894]
[1739614543730,0.03606497,194.1,194.08,5.1516]
[1739614544029,0.03606497,194.1,194.07,13.91050894]
[1739614544431,0.03606497,194.1,194.04,13.91050894]
[1739614545036,0.03606497,194.1,194.05,5.1525]
[1739614546038,0.03606497,194.1,194.06,5.1521]
[1739614548136,0.03606497,194.1,194.04,19.06300894]
[1739614548340,0.03606497,194.1,194.04,13.91050894]
[1739614548732,0.03606497,194.1,194.05,5.1522]
[1739614549738,0.03606497,194.1,194.06,5.1522]
[1739614550342,12.67,194.09,194.06,5.1522]
[1739614551140,12.67,194.09,194.04,13.91050894]
[1739614551343,12.67,194.09,194.07,5.1519]
[1739614551844,10.19,194.08,194.07,5.1519]
[1739614552945,10.19,194.08,194.06,5.1522]
[1739614553746,10.19,194.08,194.02,13.91517256]
[1739614554143,10.19,194.08,194.05,8.92757423]
[1739614554446,10.19,194.08,194.06,5.152]
[1739614554946,10.19,194.08,194.07,5.152]
[1739614555845,12.67,194.09,194.08,5.1517]
[1739614558550,0.03606497,194.1,194.07,14.07937423]
[1739614559050,0.03606497,194.1,194.07,8.92757423]
[1739614559647,9.11,194.09,194.07,8.92757423]
[1739614561252,28.13578019,194.08,194.07,8.92757423]
[1739614561451,9.11,194.09,194.05,8.92757423]
[1739614562751,9.11,194.09,194.07,8.92757423]
[1739614563152,17.85514846,194.08,193.93,8.92757423]
[1739614563357,8.92757423,194.01,193.93,8.92757423]
[1739614563551,0.03337003,194.02,193.97,8.92757423]
[1739614563752,8.92757423,194.05,193.97,8.92757423]
[1739614563953,0.03266318,194.01,193.99,8.92757423]
[1739614564153,0.03266318,194.01,193.98,25.47048857]
[1739614564356,0.03266318,194.01,193.98,34.3980628]
[1739614564549,0.03266318,194.01,194.0,8.92757423]
[1739614564859,4.26266318,194.01,194.0,14.08137423]
[1739614565051,4.26266318,194.01,194.0,8.92757423]
[1739614565257,4.26266318,194.01,194.0,14.46463696]
[1739614565457,4.26266318,194.01,194.0,5.53706273]
[1739614565653,14.28919892,194.01,193.99,5.1541]
[1739614565859,14.28919892,194.01,193.98,8.92757423]
[1739614566158,4.12,194.0,193.99,5.1538]
[1739614566356,7.9763599,194.0,193.99,5.1538]
[1739614567055,23.35249577,194.0,193.99,5.1538]
[1739614567958,6.8462,193.99,193.98,8.93234234]
[1739614568158,6.8462,193.99,193.95,13.92261717]
[1739614568455,31.43074993,193.99,193.92,13.92261717]
[1739614568662,13.01547023,193.98,193.92,13.92261717]
[1739614569262,13.01547023,193.97,193.92,13.92261717]
[1739614569761,4.12,193.96,193.92,13.92261717]
[1739614570060,16.99,193.96,193.92,13.92261717]
[1739614570257,27.42859924,193.96,193.92,13.92261717]
[1739614570458,27.42859924,193.96,193.95,5.1552]
[1739614570758,23.99299924,193.96,193.95,5.1552]
[1739614570959,20.55739924,193.96,193.95,5.1552]
[1739614571165,6.6832,193.96,193.95,5.1552]
[1739614572064,6.6832,193.96,193.95,19.07781717]
[1739614572363,10.8032,193.96,193.95,19.07781717]
[1739614573059,9.1041,193.96,193.95,19.07781717]
[1739614575161,6.88377955,193.99,193.95,13.92261717]
[1739614575361,6.88377955,193.99,193.98,5.1544]
[1739614575665,0.03757955,193.99,193.98,5.1544]
[1739614576365,15.12757955,193.99,193.98,5.1544]
[1739614577664,15.12757955,193.99,193.98,19.07701717]
[1739614577863,11.69267955,193.99,193.98,19.07701717]
[1739614586060,15.92267955,193.99,193.97,0.03493358]
[1739614586266,15.92267955,193.99,193.98,5.1544]
[1739614587372,20.04267955,193.99,193.98,5.1544]
[1739614588564,20.04267955,193.99,193.97,5.18953358]
[1739614588970,20.04267955,193.99,193.97,0.03493358]
[1739614590275,28.74267955,193.99,193.97,0.03493358]
[1739614590466,28.74267955,193.99,193.98,5.1544]
[1739614591371,20.04267955,193.99,193.98,5.1544]
[1739614592368,20.04267955,193.99,193.97,0.03493358]
[1739614592369,5.8956,193.98,193.97,0.03493358]
[1739614593270,5.8956,193.98,193.97,5.18953358]
[1739614593470,20.04267955,193.99,193.97,0.03493358]
[1739614593672,20.04267955,193.99,193.98,5.1544]
[1739614599075,20.04267955,193.99,193.97,14.12576321]
[1739614599375,20.04267955,193.99,193.97,8.97116321]
[1739614599778,20.04267955,193.99,193.97,14.12576321]
[1739614601278,20.04267955,193.99,193.97,8.97116321]
[1739614601679,15.92267955,193.99,193.97,14.12556321]
[1739614602580,15.92267955,193.99,193.97,8.97116321]
[1739614602777,4.12,193.98,193.97,8.97116321]
[1739614603783,17.83,193.98,193.97,8.97116321]
[1739614604889,17.83,193.98,193.97,14.12576321]
[1739614606287,30.71,193.98,193.97,14.12576321]
[1739614613094,17.0,193.98,193.97,14.12576321]
[1739614614290,17.0,193.98,193.97,14.08199284]
[1739614615390,21.23,193.98,193.97,14.08199284]
[1739614615593,21.23,193.98,193.97,8.93622963]
[1739614616498,25.35,193.98,193.97,14.09082963]
[1739614627996,11.33,193.99,193.98,5.1544]
[1739614628300,13.9,194.01,193.97,8.93622963]
[1739614628499,13.9,194.01,194.0,8.93622963]
[1739614629300,25.36,194.01,194.0,8.93622963]
[1739614630502,25.36,194.01,193.99,8.97451341]
[1739614632305,25.36,194.01,193.99,14.12861341]
[1739614632702,25.36,194.01,193.99,8.97451341]
[1739614634105,25.36,194.01,193.99,0.03828378]
[1739614634306,25.36,194.01,193.97,8.93622963]
[1739614634809,25.36,194.01,193.95,8.93622963]
[1739614636904,25.36,194.01,193.97,8.93622963]
[1739614638309,25.36,194.01,193.95,8.93622963]
[1739614638511,14.09002963,194.0,193.93,8.93622963]
[1739614638804,8.97097544,194.0,193.93,8.93622963]
[1739614639004,9.06,193.99,193.95,8.93622963]
[1739614640309,9.06,193.99,193.96,5.1548]
[1739614641208,9.06,193.99,193.97,5.1546]
[1739614642612,9.06,193.99,193.95,8.93622963]
[1739614642807,9.06,193.99,193.98,5.1544]
[1739614643009,0.03474581,194.0,193.98,5.1544]
[1739614644212,10.66474581,194.0,193.98,5.1544]
[1739614644611,10.66474581,194.0,193.95,8.93622963]
[1739614644812,10.66474581,194.0,193.97,5.1546]
[1739614646511,9.78,193.99,193.97,5.1546]
[1739614646713,9.78,193.99,193.95,8.93622963]
[1739614647917,9.78,193.99,193.97,5.1544]
[1739614648710,9.78,193.99,193.98,5.1544]
[1739614648911,9.78,193.99,193.97,8.93622963]
[1739614649614,9.78,193.99,193.97,14.09062963]
[1739614650219,9.78,193.99,193.97,8.93622963]
[1739614650414,9.78,193.99,193.98,5.1544]
[1739614650914,9.78,193.99,193.97,8.93622963]
[1739614651115,9.78,193.99,193.97,14.09082963]
[1739614651416,9.78,193.99,193.97,8.93622963]
[1739614651617,0.15,193.98,193.97,8.93622963]
[1739614652418,0.15,193.98,193.97,14.09082963]
[1739614653014,0.15,193.98,193.97,8.93622963]
[1739614653214,0.15,193.98,193.95,8.93622963]
[1739614653420,0.15,193.98,193.97,5.1546]
[1739614653620,0.18958153,193.98,193.97,5.1546]
[1739614654421,8.78958153,193.98,193.97,5.1546]
[1739614655025,8.78958153,193.98,193.96,14.33771943]
[1739614655418,8.78958153,193.98,193.97,5.1546]
[1739614658523,20.14958153,193.98,193.97,5.1546]
[1739614663624,11.54958153,193.98,193.97,5.1546]
[1739614664723,7.5554,193.97,193.96,9.18301943]
[1739614665925,11.39958153,193.98,193.97,5.1546]
[1739614666323,11.54958153,193.98,193.97,5.1546]
[1739614667921,11.54958153,193.98,193.96,9.18301943]
[1739614669132,11.54958153,193.98,193.97,5.1546]
[1739614675337,11.54958153,193.98,193.96,9.18301943]
[1739614675937,11.54958153,193.98,193.97,5.1546]
[1739614677640,11.54958153,193.98,193.96,14.33781943]
[1739614677943,11.54958153,193.98,193.96,9.18301943]
[1739614678644,11.54958153,193.98,193.97,5.1546]
[1739614681945,11.54958153,193.98,193.96,9.18301943]
[1739614682141,11.54958153,193.98,193.96,14.33781943]
[1739614682346,0.18958153,193.98,193.96,9.18301943]
[1739614682848,0.18958153,193.98,193.96,14.33771943]
[1739614683348,11.39,193.97,193.96,14.33771943]
[1739614685446,11.54,193.97,193.96,14.33771943]
[1739614688252,11.54,193.97,193.96,9.18301943]
[1739614691156,11.54,193.97,193.96,14.33791943]
[1739614691659,22.92,193.97,193.96,14.33791943]
[1739614695464,9.78,193.99,193.98,5.1544]
[1739614695664,9.78,193.99,193.98,14.33741943]
[1739614696655,13.9,193.99,193.98,14.33741943]
[1739614699467,4.12,193.99,193.98,14.33741943]
[1739614699670,4.12,193.99,193.98,9.18301943]
[1739614700767,3.89698057,193.98,193.97,9.22003601]
[1739614701767,4.12,193.99,193.97,9.22003601]
[1739614702168,4.12,193.99,193.97,14.37463601]
[1739614703471,4.12,193.99,193.98,5.1544]
[1739614704972,4.12,193.99,193.97,14.37463601]
[1739614706874,4.12,193.99,193.98,5.1544]
[1739614717777,11.35381943,194.09,193.97,9.22003601]
[1739614717778,9.18301943,194.09,193.97,9.22003601]
[1739614717978,2.4083,194.1,194.04,9.18301943]
[1739614718378,2.4083,194.1,194.06,9.18301943]
[1739614718778,2.4083,194.1,194.04,9.18301943]
[1739614718974,4.12,194.09,194.06,0.03853311]
[1739614719282,35.20301943,194.09,194.06,0.03853311]
[1739614721177,40.35441943,194.09,194.06,0.03853311]
[1739614721883,5.1518,194.08,194.06,0.03853311]
[1739614722382,9.18301943,194.07,194.03,5.1528]
[1739614723683,9.18301943,194.07,194.03,5.18546725]
[1739614724071,14.33501943,194.07,194.03,5.18546725]
[1739614725473,14.33501943,194.07,194.03,0.03266725]
[1739614726384,5.1523,194.06,194.03,0.03266725]
[1739614727382,13.6,194.05,194.03,0.03266725]
[1739614733488,13.6,194.05,194.04,9.18301943]
[1739614733889,0.03562101,194.06,194.04,9.18301943]
[1739614734493,4.12,194.05,194.04,9.18301943]
[1739614734788,4.12,194.05,194.03,0.03266725]
[1739614735489,4.12,194.05,194.03,5.18546725]
[1739614738099,4.12,194.05,194.03,0.03266725]
[1739614738389,4.12,194.05,194.04,5.1528]
[1739614739290,15.79,194.05,194.04,5.1528]
[1739614740291,15.79,194.05,194.04,14.33581943]
[1739614741390,15.79,194.05,194.04,9.18301943]
[1739614742585,15.79,194.05,194.03,5.18566725]
[1739614742586,15.79,194.05,194.03,0.03266725]
[1739614742793,24.97301943,194.05,194.0,52.48628814]
[1739614742994,24.97301943,194.05,193.96,9.18301943]
[1739614743191,5.1533,194.03,193.97,5.1544]
[1739614743592,9.18301943,194.03,193.96,9.18301943]
[1739614744091,0.03857287,194.01,193.96,9.18301943]
[1739614744995,0.03857287,194.01,193.98,9.18301943]
[1739614745195,9.32,194.0,193.98,9.18301943]
[1739614745895,9.32,194.0,193.98,14.33731943]
[1739614746596,9.32,194.0,193.98,9.18301943]
[1739614752204,9.32,194.0,193.99,5.1541]
[1739614754310,0.03857287,194.01,193.99,5.1541]
[1739614754607,0.03857287,194.01,194.0,10.21681943]
[1739614755603,1.53318057,194.0,193.93,2.2776]
[1739614755801,0.03857287,194.01,193.99,5.06301943]
[1739614756904,0.03857287,194.01,194.0,5.1538]
[1739614757108,0.03857287,194.01,193.99,5.06301943]
[1739614757916,9.26,194.02,194.01,14.33661943]
[1739614758305,11.67,194.05,194.01,14.33661943]
[1739614758510,11.67,194.05,194.04,8.50301943]
[1739614771126,11.67,194.05,194.04,13.65581943]
[1739614772524,10.78242291,194.06,194.05,5.1525]
[1739614773030,0.03242291,194.06,194.05,5.1525]
[1739614773532,2.9275,194.05,194.04,8.50301943]
[1739614774621,7.30242291,194.06,194.04,13.65551943]
[1739614778529,7.30242291,194.06,194.04,8.50301943]
[1739614778730,7.30242291,194.06,194.05,5.1525]
[1739614780931,7.30242291,194.06,194.04,8.50301943]
[1739614781133,7.30242291,194.06,194.04,13.65571943]
[1739614781431,0.03242291,194.06,194.04,13.65571943]
[1739614782126,6.5,194.07,194.06,5.1522]
[1739614782334,6.5,194.07,194.04,9.18301943]
[1739614782534,8.11,194.05,194.04,9.18301943]
[1739614782733,8.11,194.05,194.04,14.33581943]
[1739614791439,6.53600306,194.06,194.04,9.18301943]
[1739614791638,6.53600306,194.06,194.05,5.1525]
[1739614792642,3.9375,194.05,194.04,9.18301943]
[1739614793643,3.9375,194.05,194.04,14.33581943]
[1739614793841,6.53600306,194.06,194.04,9.18301943]
[1739614795044,6.53600306,194.06,194.05,5.1525]
[1739614800947,6.53600306,194.06,194.04,14.33571943]
[1739614802952,6.53600306,194.06,194.05,5.1525]
[1739614805650,6.53600306,194.06,194.04,14.33551943]
[1739614806854,6.53600306,194.06,194.03,0.03428682]
[1739614807253,14.56600306,194.06,194.03,0.03428682]
[1739614808650,14.56600306,194.06,194.04,9.18301943]
[1739614817061,14.56600306,194.06,194.05,5.1525]
[1739614817359,6.53600306,194.06,194.04,9.18301943]
[1739614817762,6.53600306,194.06,194.04,14.33561943]
[1739614818261,9.12,194.05,194.04,14.33561943]
[1739614823362,9.12,194.05,194.04,9.18301943]
[1739614825765,9.12,194.05,194.04,2.68301943]
[1739614826267,9.12,194.05,194.04,7.83581943]
[1739614826967,9.12,194.05,194.04,2.68301943]
[1739614827768,9.12,194.05,194.04,7.83581943]
[1739614827970,9.12,194.05,194.04,2.68301943]
[1739614831868,0.03600306,194.06,194.04,2.68301943]
[1739614832978,7.88,194.05,194.04,2.68301943]
[1739614833277,7.88,194.05,194.04,7.83581943]
[1739614836978,7.88,194.05,194.04,2.68301943]
[1739614840181,0.03600306,194.06,194.04,2.68301943]
[1739614841274,9.05,194.05,194.04,2.68301943]
[1739614845385,9.05,194.05,194.04,7.83581943]
[1739614845685,9.05,194.05,194.04,2.68301943]
[1739614851487,0.03600306,194.06,194.04,2.68301943]
[1739614852585,8.17,194.05,194.04,2.68301943]
[1739614853284,8.17,194.05,194.04,7.83581943]
[1739614853788,8.17,194.05,194.04,2.68301943]
[1739614861490,0.03600306,194.06,194.04,2.68301943]
[1739614861691,5.18820306,194.06,194.04,2.68301943]
[1739614861991,0.03600306,194.06,194.04,2.68301943]
[1739614862788,8.55,194.05,194.04,2.68301943]
[1739614866399,8.55,194.05,194.04,7.83581943]
[1739614870810,0.03600306,194.06,194.04,7.83581943]
[1739614871401,0.03600306,194.06,194.04,2.68301943]
[1739614871800,7.84,194.05,194.04,2.68301943]
[1739614875706,7.84,194.05,194.03,0.03428682]
[1739614876907,12.9926,194.05,194.03,0.03428682]
[1739614877708,7.84,194.05,194.03,0.03428682]
[1739614877911,9.18301943,194.04,193.97,5.1544]
[1739614878102,9.18301943,194.02,193.97,5.1544]
[1739614878502,14.33641943,194.02,193.97,5.1544]
[1739614879109,5.18673576,194.01,193.98,0.03920635]
[1739614879807,0.03313576,194.01,193.98,0.03920635]
[1739614881306,0.03313576,194.01,193.99,5.1541]
[1739614881507,0.03313576,194.01,193.98,0.03920635]
[1739614881903,0.03313576,194.01,194.0,5.1538]
[1739614882103,0.9962,194.0,193.98,0.03920635]
[1739614882611,0.9962,194.0,193.98,9.22222578]
[1739614883107,0.03313576,194.01,193.98,9.22222578]
[1739614883314,0.03313576,194.01,194.0,9.18301943]
[1739614884015,0.03313576,194.01,194.0,14.33681943]
[1739614885318,5.1516,194.09,194.0,9.18301943]
[1739614885613,5.1516,194.09,193.99,2.393]
[1739614885614,5.1516,194.09,194.06,9.18301943]
[1739614886406,5.18884719,194.09,194.06,9.22241952]
[1739614886619,5.1519,194.08,194.06,0.03940009]
[1739614887115,5.1517,194.08,194.06,0.03940009]
[1739614887310,7.34724719,194.09,194.06,0.03940009]
[1739614888018,5.152,194.07,194.06,0.03940009]
[1739614888220,7.34724719,194.09,194.06,0.03940009]
[1739614888716,5.1519,194.08,194.06,0.03940009]
[1739614889110,7.34724719,194.09,194.06,0.03940009]
[1739614889315,5.152,194.07,194.06,0.03940009]
[1739614892223,14.33471943,194.08,194.06,0.03940009]
[1739614892421,9.18301943,194.08,194.06,0.03940009]
[1739614893021,14.33481943,194.08,194.06,0.03940009]
[1739614893624,9.18301943,194.08,194.06,0.03940009]
[1739614895218,16.85301943,194.08,194.06,0.03940009]
[1739614895826,22.00491943,194.08,194.06,0.03940009]
[1739614900132,7.67,194.08,194.06,0.03940009]
[1739614900732,12.8217,194.08,194.06,0.03940009]
[1739614900930,16.85301943,194.08,194.06,0.03940009]
[1739614901635,5.152,194.07,194.06,0.03940009]
[1739614906242,13.782,194.07,194.06,0.03940009]
[1739614906643,5.1536,194.01,193.98,9.18301943]
[1739614906843,5.1536,194.01,193.97,5.1546]
[1739614906844,14.33661943,194.01,193.97,5.1546]
[1739614907143,9.18301943,193.99,193.92,11.55871943]
[1739614907845,0.03920835,193.98,193.95,5.155]
[1739614908540,0.03920835,193.98,193.96,5.1549]
[1739614908939,0.03920835,193.98,193.96,9.18301943]
[1739614909139,0.03920835,193.98,193.97,5.1546]
[1739614911541,9.18301943,194.05,193.96,9.18301943]
[1739614911750,9.18301943,194.05,194.0,14.33661943]
[1739614912049,17.81301943,194.07,194.0,9.18301943]
[1739614912445,17.81301943,194.07,194.02,9.18301943]
[1739614912849,0.03389682,194.06,194.03,0.03472699]
[1739614913949,0.03389682,194.06,194.04,5.1526]
[1739614915450,0.03389682,194.06,194.03,0.03472699]
[1739614916648,6.44,194.05,194.03,5.18752699]
[1739614917451,6.44,194.05,194.04,5.1528]
[1739614917949,6.44,194.05,194.03,0.03472699]
[1739614918349,6.44,194.05,194.03,5.18752699]
[1739614919753,6.44,194.05,194.03,0.03472699]
[1739614920052,6.44,194.05,194.04,5.1528]
[1739614920345,6.44,194.05,194.04,14.33581943]
[1739614924557,0.03389682,194.06,194.04,14.33581943]
[1739614924756,0.03389682,194.06,194.04,9.18301943]
[1739614924957,0.03389682,194.06,194.04,14.33571943]
[1739614925358,0.03389682,194.06,194.04,9.18301943]
[1739614925563,0.03389682,194.06,194.05,5.1525]
[1739614925862,2.5075,194.05,194.04,9.18301943]
[1739614926758,0.03389682,194.06,194.05,5.1525]
[1739614930970,0.03389682,194.06,194.04,14.33571943]
[1739614931361,0.03389682,194.06,194.05,5.1525]
[1739614931664,0.03389682,194.06,194.04,9.18301943]
[1739614932665,0.03389682,194.06,194.05,5.1525]
[1739614932864,0.03389682,194.06,194.04,9.18301943]
[1739614935070,0.03389682,194.06,194.05,5.1525]
[1739614935971,141.10490526,194.17,194.04,9.18301943]
[1739614936173,141.10490526,194.17,194.15,9.18301943]
[1739614936868,141.10490526,194.17,194.05,2.4858]
[1739614936869,150.28792469,194.17,194.11,9.18301943]
[1739614937068,9.18301943,194.15,194.09,9.18301943]
[1739614937370,9.18301943,194.15,194.09,9.21706249]
[1739614937576,0.03903046,194.14,194.13,9.18301943]
[1739614938163,0.03903046,194.14,194.13,14.33341943]
[1739614938472,0.03903046,194.14,194.12,0.03409027]
[1739614938874,0.03903046,194.14,194.13,9.18301943]
[1739614939564,6.29,194.18,194.13,9.18301943]
[1739614939767,6.29,194.18,194.15,9.18301943]
[1739614940770,6.32603934,194.18,194.17,9.18301943]
[1739614941275,0.03603934,194.18,194.17,9.18301943]
[1739614943969,150.28792469,194.31,194.17,9.18301943]
[1739614944178,150.28792469,194.31,194.26,9.18301943]
[1739614944575,150.28792469,194.31,194.24,9.18301943]
[1739614944775,5.1462,194.29,194.24,14.33041943]
[1739614944971,150.28792469,194.31,194.24,9.18301943]
[1739614945278,8.58693788,194.28,194.27,5.1467]
[1739614945477,8.58693788,194.28,194.26,9.18301943]
[1739614946378,0.03693788,194.28,194.26,9.18301943]
[1739614947778,0.03693788,194.28,194.25,0.03615432]
[1739614948177,5.18333788,194.28,194.25,0.03615432]
[1739614948878,9.18301943,194.27,194.25,0.03615432]
[1739614949076,9.18301943,194.27,194.18,9.18301943]
[1739614949271,9.18301943,194.22,194.16,9.18301943]
[1739614950078,5.1486,194.2,194.16,14.33261943]
[1739614950279,5.1486,194.2,194.17,0.03824518]
[1739614954381,5.149,194.18,194.17,0.03824518]
[1739614955182,9.18301943,194.18,194.12,9.18301943]
[1739614955377,9.18301943,194.16,194.1,9.18301943]
[1739614955778,5.1496,194.16,194.12,9.18301943]
[1739614955984,2.4473,194.19,194.12,14.33361943]
[1739614956374,0.03558977,194.17,194.14,0.03505089]
[1739614956782,0.03558977,194.17,194.14,9.21807032]
[1739614958685,9.88,194.16,194.14,9.21807032]
[1739614960085,9.88,194.16,194.14,14.36807032]
[1739614960278,9.88,194.16,194.14,9.21807032]
[1739614961688,9.88,194.16,194.14,14.36817032]
[1739614962590,9.88,194.16,194.14,9.21807032]
[1739614964486,9.88,194.16,194.14,14.36817032]
[1739614966286,9.88,194.16,194.15,5.1498]
[1739614968792,9.88,194.16,194.14,14.36807032]
[1739614969098,0.03558977,194.17,194.14,0.03505089]
[1739614969298,0.03558977,194.17,194.12,9.18301943]
[1739614969498,9.18301943,194.16,194.1,9.18301943]
[1739614969702,9.18301943,194.14,194.08,9.18301943]
[1739614970203,5.151,194.11,194.08,9.18301943]
[1739614970499,5.151,194.11,194.09,0.0393295]